fUSD/lending_fUSD_20250415
["ID","MTS","AMOUNT","RATE_DAILY","PERIOD"]
[358134189,1744758114720,-150.0,0.00052459,30]
[358134190,1744758114749,-305.77080733,0.00052466,30]
[358134192,1744758114779,-214.54507832,0.00052466,30]
[358134194,1744758114810,-1000000.0,0.000525,120]
[358134195,1744758114838,-3000.0,0.000525,120]
[358134197,1744758114866,-151.0,0.000525,120]
[358134198,1744758114895,-599.60298507,0.000525,120]
[358134200,1744758114924,-150.0,0.00052507,30]
[358134202,1744758114952,-150.0,0.00052507,30]
[358134203,1744758114981,-150.0,0.00052517,30]
[358134205,1744758115011,-305.77080733,0.00052521,30]
[358134207,1744758115040,-214.54507832,0.00052521,30]
[358134208,1744758115068,-150.0,0.00052575,30]
[358134210,1744758115096,-305.77080733,0.00052576,30]
[358134212,1744758115124,-214.54507832,0.00052576,30]
[358134213,1744758115151,-150.0,0.00052583,30]
[358134215,1744758115179,-150.0,0.00052586,120]
[358134217,1744758115207,-1124.75,0.00052602,120]
[358134218,1744758115235,-305.77080733,0.00052632,30]
[358134220,1744758115263,-214.54507832,0.00052632,30]
[358134222,1744758115291,-150.0,0.00052633,30]
[358134226,1744758115458,-150.0,0.00052659,30]
[358134228,1744758115485,-150.0,0.00052659,30]
[358134230,1744758115514,-305.77080733,0.00052687,30]
[358134231,1744758115542,-214.54507832,0.00052687,30]
[358134233,1744758115571,-150.0,0.00052692,30]
[358134235,1744758115599,-150.0,0.00052735,30]
[358134236,1744758115628,-305.77080733,0.00052742,30]
[358134238,1744758115656,-214.54507832,0.00052742,30]
[358134240,1744758115684,-150.0,0.0005275,30]
[358134241,1744758115712,-150.0,0.00052774,120]
[358134243,1744758115739,-305.77080733,0.00052798,30]
[358134245,1744758115767,-214.54507832,0.00052798,30]
[358134246,1744758115796,-150.0,0.00052808,120]
[358134248,1744758115823,-150.0,0.00052808,30]
[358134250,1744758115851,-150.0,0.00052811,30]
[358134251,1744758115878,-150.0,0.00052811,30]
[358134253,1744758115906,-305.77080733,0.00052853,30]
[358134255,1744758115935,-214.54507832,0.00052853,30]
[358134256,1744758115963,-150.0,0.00052867,30]
[358134258,1744758115991,-1124.75,0.00052876,120]
[358134260,1744758116019,-338.0,0.00052882,120]
[358134261,1744758116047,-150.0,0.00052888,30]
[358134263,1744758116075,-305.77080733,0.00052908,30]
[358134265,1744758116102,-214.54507832,0.00052908,30]
[358134266,1744758116129,-150.0,0.00052925,30]
[358134268,1744758116156,-305.77080733,0.00052964,30]
[358134270,1744758116183,-214.54507832,0.00052964,30]
[358134271,1744758116212,-150.0,0.00052964,30]
[358134273,1744758116239,-150.0,0.00052964,30]
[358134275,1744758116265,-150.0,0.00052983,30]
[358134276,1744758116292,-3000.0,0.0005299,31]
[358134278,1744758116322,-50000.0,0.00053,53]
[358134280,1744758116356,-50000.0,0.00053,63]
[358134281,1744758116387,-521880.20785579,0.00053,120]
[358134396,1744758121750,-153.0,0.00047418,60]
[358134398,1744758121780,-153.0,0.00047418,60]
[358134399,1744758121811,-153.0,0.00047418,60]
[358134401,1744758121841,-153.0,0.00047418,60]
[358134403,1744758121871,-153.0,0.00047418,60]
[358134404,1744758121900,-153.0,0.00047418,60]
[358134406,1744758121931,-153.0,0.00047418,60]
[358134407,1744758121961,-153.0,0.00047418,60]
[358134409,1744758121993,-255.02665741,0.00051,120]
[358134411,1744758122025,-537.4996551,0.00051,120]
[358134412,1744758122055,-150.0,0.00051635,30]
[358134414,1744758122088,-478119.79214421,0.00053,120]
[358134416,1744758122118,-223.04915,0.00053,120]
[358134417,1744758122147,-2000.0,0.00053,120]
[358134419,1744758122175,-1787.0,0.00053,120]
[358134421,1744758122204,-4018.04175029,0.00053,120]
[358134422,1744758122233,-998.83230194,0.00053,120]
[358134424,1744758122261,-2000.0,0.00053,120]
[358134425,1744758122290,-309.0,0.00053,120]
[358134427,1744758122322,-1000000.0,0.00053,120]
[358134429,1744758122354,-1000000.0,0.00053,120]
[358134430,1744758122386,-1000000.0,0.00053,120]
[358134432,1744758122415,-1282.6522098,0.00053,100]
[358134434,1744758122445,-151.0,0.00053,108]
[358134435,1744758122473,-208.0,0.0005301,30]
[358134437,1744758122500,-259.0,0.0005301,30]
[358134439,1744758122528,-209.0,0.0005301,30]
[358134440,1744758122556,-224.0,0.0005301,30]
[358134442,1744758122583,-223.0,0.0005301,30]
[358134444,1744758122612,-305.77080733,0.00053019,30]
[358134445,1744758122639,-214.54507832,0.00053019,30]
[358134447,1744758122667,-150.0,0.0005304,30]
[358134449,1744758122694,-150.0,0.00053041,30]
[358134450,1744758122724,-150.0,0.00053067,120]
[358134452,1744758122751,-305.77080733,0.00053074,30]
[358134454,1744758122780,-214.54507832,0.00053074,30]
[358134455,1744758122809,-150.0,0.000531,30]
[358134457,1744758122837,-150.0,0.00053116,30]
[358134459,1744758122865,-150.0,0.00053116,30]
[358134460,1744758122892,-305.77080733,0.0005313,30]
[358134462,1744758122920,-214.54507832,0.0005313,30]
[358134464,1744758122950,-150.0,0.00053131,120]
[358134469,1744758123141,-427.18028085,0.00053137,30]
[358134471,1744758123171,-1124.75,0.0005315,120]
[358134472,1744758123202,-150.0,0.00053158,30]
[358134474,1744758123232,-305.77080733,0.00053185,30]
[358134475,1744758123262,-214.54507832,0.00053185,30]
[358134477,1744758123291,-150.0,0.00053192,30]
[358134479,1744758123322,-973.11535536,0.000532,30]
[358134480,1744758123355,-150.0,0.00053216,30]
[358134482,1744758123385,-305.77080733,0.0005324,30]
[358134484,1744758123415,-214.54507832,0.0005324,30]
[358134485,1744758123446,-150.0,0.00053268,30]
[358134487,1744758123475,-150.0,0.00053268,30]
[358134489,1744758123504,-338.0,0.0005327,120]
[358134490,1744758123537,-150.0,0.00053275,30]
[358134492,1744758123566,-305.77080733,0.00053296,30]
[358134494,1744758123596,-214.54507832,0.00053296,30]
[358134495,1744758123626,-4542.6331419,0.000533,120]
[358134497,1744758123657,-150.0,0.00053333,30]
[358134499,1744758123688,-150.0,0.00053344,30]
[358134500,1744758123719,-305.77080733,0.00053351,30]
[358134502,1744758123748,-214.54507832,0.00053351,30]
[358134504,1744758123780,-150.0,0.0005336,120]
[358134505,1744758123813,-150.0,0.00053391,30]
[358134507,1744758123845,-305.77080733,0.00053406,30]
[358134508,1744758123877,-214.54507832,0.00053406,30]
[358134510,1744758123907,-150.0,0.0005342,30]
[358134512,1744758123941,-150.0,0.0005342,30]
[358134513,1744758123973,-1124.75,0.00053424,120]
[358134515,1744758124003,-504.5,0.00053424,30]
[358134516,1744758124034,-3000.0,0.0005344,31]
[358134518,1744758124065,-150.0,0.00053449,30]
[358134520,1744758124095,-305.77080733,0.00053462,30]
[358134521,1744758124125,-214.54507832,0.00053462,30]
[358134523,1744758124155,-150.0,0.00053496,30]
[358134525,1744758124188,-1000000.0,0.000535,120]
[358134526,1744758124217,-3000.0,0.000535,120]
[358134528,1744758124245,-2104.26096436,0.000535,120]
[358134529,1744758124274,-3464.17617505,0.000535,120]
[358134531,1744758124308,-477384.89724288,0.000535,120]
[358134576,1744758126556,-153.0,0.00047412,60]
[358134578,1744758126587,-153.0,0.00047412,60]
[358134580,1744758126615,-153.0,0.00047412,60]
[358134581,1744758126643,-153.0,0.00047412,60]
[358134583,1744758126673,-153.0,0.00047412,60]
[358134585,1744758126702,-153.0,0.00047412,60]
[358134586,1744758126732,-153.0,0.00047412,60]
[358134588,1744758126760,-153.0,0.00047412,60]
[358134590,1744758126787,-153.0,0.00047412,60]
[358134591,1744758126815,-153.0,0.00047412,60]
[358134593,1744758126843,-153.0,0.00047412,60]
[358134594,1744758126871,-153.0,0.00047412,60]
[358134596,1744758126899,-153.0,0.00047412,60]
[358134598,1744758126928,-153.0,0.00047412,60]
[358134599,1744758126958,-153.0,0.00047412,60]
[358134601,1744758126985,-153.0,0.00047412,60]
[358134603,1744758127016,-150.0,0.00053,30]
[358134604,1744758127043,-150.0,0.000531,30]
[358134606,1744758127072,-151.0,0.00053131,120]
[358134607,1744758127100,-151.0,0.00053131,120]
[358134609,1744758127132,-6908.98275712,0.000535,120]
[358134611,1744758127161,-150.0,0.00053504,120]
[358134612,1744758127189,-150.0,0.00053508,30]
[358134614,1744758127217,-150.0,0.00053517,120]
[358134616,1744758127245,-305.77080733,0.00053517,30]
[358134617,1744758127273,-214.54507832,0.00053517,30]
[358134619,1744758127300,-230.88362126,0.00053535,120]
[358134620,1744758127329,-150.0,0.00053566,30]
[358134622,1744758127359,-305.77080733,0.00053572,30]
[358134624,1744758127386,-214.54507832,0.00053572,30]
[358134625,1744758127417,-150.0,0.00053572,30]
[358134627,1744758127446,-150.0,0.00053572,30]
[358134629,1744758127474,-150.0,0.00053606,120]
[358134630,1744758127502,-150.0,0.00053624,30]
[358134632,1744758127530,-305.77080733,0.00053628,30]
[358134634,1744758127560,-214.54507832,0.00053628,30]
[358134635,1744758127590,-150.0,0.00053649,30]
[358134637,1744758127618,-150.0,0.00053683,30]
[358134638,1744758127645,-305.77080733,0.00053683,30]
[358134640,1744758127673,-214.54507832,0.00053683,30]
[358134642,1744758127702,-1124.75,0.00053698,120]
[358134643,1744758127730,-150.0,0.00053725,30]
[358134645,1744758127757,-150.0,0.00053725,30]
[358134646,1744758127785,-305.77080733,0.00053738,30]
[358134648,1744758127812,-214.54507832,0.00053738,30]
[358134650,1744758127841,-150.0,0.00053741,30]
[358134651,1744758127870,-305.77080733,0.00053794,30]
[358134656,1744758128043,-214.54507832,0.00053794,30]
[358134658,1744758128073,-150.0,0.00053799,30]
[358134659,1744758128101,-3020.06721336,0.000538,120]
[358134661,1744758128134,-150.0,0.00053801,30]
[358134662,1744758128164,-150.0,0.00053813,120]
[358134664,1744758128193,-305.77080733,0.00053849,30]
[358134666,1744758128223,-214.54507832,0.00053849,30]
[358134667,1744758128252,-150.0,0.00053857,30]
[358134669,1744758128281,-150.0,0.00053877,30]
[358134671,1744758128310,-150.0,0.00053877,30]
[358134672,1744758128340,-482.45641999,0.00053898,120]
[358134674,1744758128372,-191.12935459,0.00053898,120]
[358134676,1744758128402,-305.77080733,0.00053905,30]
[358134677,1744758128432,-214.54507832,0.00053905,30]
[358134679,1744758128461,-150.0,0.00053916,30]
[358134681,1744758128492,-150.0,0.00053953,30]
[358134682,1744758128522,-305.77080733,0.0005396,30]
[358134684,1744758128552,-214.54507832,0.0005396,30]
[358134686,1744758128583,-1124.75,0.00053972,120]
[358134687,1744758128613,-504.5,0.00053972,32]
[358134689,1744758128643,-150.0,0.00053974,30]
[358134690,1744758128675,-50000.0,0.00054,54]
[358134692,1744758128708,-50000.0,0.00054,64]
[358134694,1744758128743,-1000000.0,0.00054,120]
[358134695,1744758128771,-2000.0,0.00054,120]
[358134697,1744758128800,-3000.0,0.00054,120]
[358134699,1744758128828,-159.09821311,0.00054,120]
[358134700,1744758128857,-1166.05011468,0.00054,120]
[358134702,1744758128885,-12626.0,0.00054,120]
[358134704,1744758128913,-2000.0,0.00054,120]
[358134705,1744758128944,-1000.0,0.00054,120]
[358134707,1744758128973,-7000.0,0.00054,120]
[358134708,1744758129003,-7000.0,0.00054,120]
[358134710,1744758129033,-6000.0,0.00054,120]
[358134712,1744758129064,-7000.0,0.00054,120]
[358134713,1744758129095,-2000.0,0.00054,120]
[358134715,1744758129126,-400.0,0.00054,120]
[358134716,1744758129155,-264.325161,0.00054,120]
[358134718,1744758129187,-1000000.0,0.00054,120]
[358134720,1744758129218,-109074.44923159,0.00054,120]
[358134721,1744758129247,-5000.0,0.00054,120]
[358134723,1744758129277,-488.0266146,0.00054,120]
[358134725,1744758129307,-20000.0,0.00054,120]
[358134726,1744758129337,-4000.0,0.00054,30]
[358134728,1744758129370,-1000.0,0.00054,120]
[358134730,1744758129404,-1000000.0,0.00054,120]
[358134731,1744758129433,-151.0,0.00054,109]
[358134733,1744758129465,-305.77080733,0.00054015,30]
[358134735,1744758129495,-214.54507832,0.00054015,30]
[358134736,1744758129524,-150.0,0.00054029,30]
[358134738,1744758129554,-150.0,0.00054029,30]
[358134740,1744758129584,-150.0,0.00054032,30]
[358134741,1744758129613,-305.77080733,0.00054071,30]
[358134743,1744758129643,-214.54507832,0.00054071,30]
[358134744,1744758129671,-150.0,0.00054091,30]
[358134746,1744758129701,-150.0,0.00054105,30]
[358134748,1744758129729,-305.77080733,0.00054126,30]
[358134749,1744758129759,-214.54507832,0.00054126,30]
[358134751,1744758129789,-150.0,0.00054149,30]
[358134753,1744758129821,-305.77080733,0.00054181,30]
[358134754,1744758129851,-214.54507832,0.00054181,30]
[358134756,1744758129881,-150.0,0.00054181,30]
[358134758,1744758129910,-150.0,0.00054181,30]
[358134759,1744758129943,-223.04915,0.000542,120]
[358134761,1744758129973,-150.0,0.00054207,30]
[358134762,1744758130003,-4000.0,0.00054234,60]
[358134763,1744758130034,-305.77080733,0.00054237,30]
[358134764,1744758130068,-214.54507832,0.00054237,30]
[358134765,1744758130103,-1124.75,0.00054246,120]
[358134766,1744758130135,-150.0,0.00054257,30]
[358134767,1744758130165,-150.0,0.00054265,30]
[358134769,1744758130198,-305.77080733,0.00054292,30]
[358134771,1744758130229,-214.54507832,0.00054292,30]
[358134772,1744758130261,-194307.7659256,0.00054321,60]
[358134774,1744758130291,-150.0,0.00054324,30]
[358134776,1744758130323,-150.0,0.00054333,30]
[358134777,1744758130356,-150.0,0.00054333,30]
[358134779,1744758130388,-305.77080733,0.00054347,30]
[358134781,1744758130423,-214.54507832,0.00054347,30]
[358134782,1744758130457,-150.0,0.00054382,30]
[358134784,1744758130487,-2678.25227449,0.000544,30]
[358134786,1744758130516,-305.77080733,0.00054403,30]
[358134787,1744758130546,-214.54507832,0.00054403,30]
[358134789,1744758130575,-150.0,0.0005441,30]
[358134791,1744758130604,-1000.0,0.0005442,120]
[358134792,1744758130633,-431.79,0.0005442,120]
[358134794,1744758130661,-3000.0,0.0005444,31]
[358134796,1744758130691,-150.0,0.0005444,30]
[358134797,1744758130721,-305.77080733,0.00054458,30]
[358134799,1744758130750,-214.54507832,0.00054458,30]
[358134801,1744758130778,-150.0,0.00054486,30]
[358134802,1744758130806,-150.0,0.00054486,30]
[358134804,1744758130834,-278.55147702,0.00054495,30]
[358134805,1744758130861,-150.0,0.00054499,30]
[358134807,1744758130891,-1000000.0,0.000545,120]
[358134809,1744758130918,-3000.0,0.000545,120]
[358134810,1744758130948,-3000.0,0.000545,120]
[358134812,1744758130977,-305.77080733,0.00054513,30]
[358134814,1744758131006,-214.54507832,0.00054513,30]
[358134815,1744758131035,-1124.75,0.0005452,120]
[358134817,1744758131063,-504.5,0.0005452,34]
[358134818,1744758131091,-578.20924308,0.0005452,34]
[358134820,1744758131120,-150.0,0.00054552,120]
[358134822,1744758131149,-150.0,0.00054557,30]
[358134827,1744758131332,-150.0,0.00054561,120]
[358134829,1744758131366,-150.0,0.00054562,30]
[358134830,1744758131394,-305.77080733,0.00054569,30]
[358134832,1744758131422,-214.54507832,0.00054569,30]
[358134834,1744758131454,-2844.0,0.00054598,68]
[358134835,1744758131481,-1995.88909705,0.000546,120]
[358134837,1744758131509,-150.0,0.00054615,30]
[358134839,1744758131537,-305.77080733,0.00054624,30]
[358134840,1744758131567,-214.54507832,0.00054624,30]
[358134842,1744758131595,-150.0,0.00054638,30]
[358134843,1744758131623,-150.0,0.00054638,30]
[358134845,1744758131652,-557.5788265,0.00054644,31]
[358134847,1744758131680,-8000.0,0.00054645,60]
[358134848,1744758131708,-150.0,0.00054673,30]
[358134850,1744758131736,-305.77080733,0.00054679,30]
[358134852,1744758131764,-214.54507832,0.00054679,30]
[358134853,1744758131792,-150.0,0.00054714,30]
[358134855,1744758131821,-150.0,0.00054732,30]
[358134857,1744758131849,-305.77080733,0.00054735,30]
[358134858,1744758131878,-214.54507832,0.00054735,30]
[358134860,1744758131905,-499.999999,0.00054748,31]
[358134862,1744758131934,-537.6845,0.00054748,60]
[358134863,1744758131964,-646.54,0.00054789,90]
[358134865,1744758131995,-1000.0,0.00054789,120]
[358134866,1744758132025,-208.0,0.0005479,30]
[358134868,1744758132056,-259.0,0.0005479,30]
[358134870,1744758132086,-209.0,0.0005479,30]
[358134871,1744758132114,-224.0,0.0005479,30]
[358134873,1744758132142,-223.0,0.0005479,30]
[358134875,1744758132169,-305.77080733,0.0005479,30]
[358134876,1744758132198,-238.98355606,0.0005479,30]
[358134878,1744758132228,-158.46655839,0.0005479,30]
[358134880,1744758132258,-214.54507832,0.0005479,30]
[358134881,1744758132287,-160.43129783,0.0005479,30]
[358134883,1744758132326,-163.54502044,0.0005479,30]
[358134885,1744758132363,-209.05184317,0.0005479,30]
[358134886,1744758132393,-518.5,0.0005479,30]
[358134888,1744758132422,-156.587,0.0005479,30]
[358134890,1744758132453,-1547.0,0.0005479,30]
[358134891,1744758132484,-1124.75,0.00054794,120]
[358134893,1744758132513,-500.0,0.00054794,120]
[358134895,1744758132542,-500.0,0.00054794,120]
[358134896,1744758132574,-500.0,0.00054794,120]
[358134898,1744758132603,-570.19898656,0.00054794,120]
[358134900,1744758132632,-500.0,0.00054794,120]
[358134901,1744758132660,-500.0,0.00054794,120]
[358134903,1744758132689,-500.0,0.00054794,120]
[358134905,1744758132717,-500.0,0.00054794,120]
[358134906,1744758132744,-500.0,0.00054794,120]
[358134908,1744758132773,-500.0,0.00054794,120]
[358134910,1744758132802,-500.0,0.00054794,120]
[358134911,1744758132831,-500.0,0.00054794,120]
[358134913,1744758132860,-500.0,0.00054794,120]
[358134914,1744758132889,-500.0,0.00054794,120]
[358134916,1744758132917,-500.0,0.00054794,120]
[358134918,1744758132948,-500.0,0.00054794,120]
[358134919,1744758132976,-500.0,0.00054794,120]
[358134921,1744758133010,-500.0,0.00054794,120]
[358134923,1744758133038,-618.77612734,0.00054794,120]
[358134924,1744758133073,-1000.0,0.00054794,120]
[358134926,1744758133103,-1000.0,0.00054794,120]
[358134928,1744758133135,-1000.0,0.00054794,120]
[358134929,1744758133166,-1000.0,0.00054794,120]
[358134931,1744758133196,-1000.0,0.00054794,120]
[358134933,1744758133225,-1000.0,0.00054794,120]
[358134934,1744758133254,-1000.0,0.00054794,120]
[358134936,1744758133282,-1000.0,0.00054794,120]
[358134938,1744758133311,-1000.0,0.00054794,120]
[358134939,1744758133342,-1000.0,0.00054794,120]
[358134941,1744758133373,-1000.0,0.00054794,120]
[358134943,1744758133401,-1000.0,0.00054794,120]
[358134944,1744758133429,-1000.0,0.00054794,120]
[358134946,1744758133458,-500.0,0.00054794,120]
[358134948,1744758133484,-500.0,0.00054794,120]
[358134949,1744758133512,-500.0,0.00054794,120]
[358134951,1744758133539,-500.0,0.00054794,120]
[358134953,1744758133567,-500.0,0.00054794,120]
[358134954,1744758133594,-500.0,0.00054794,120]
[358134956,1744758133620,-500.0,0.00054794,120]
[358134957,1744758133648,-500.0,0.00054794,120]
[358134959,1744758133678,-500.0,0.00054794,120]
[358134961,1744758133706,-500.0,0.00054794,120]
[358134962,1744758133734,-500.0,0.00054794,120]
[358134964,1744758133762,-500.0,0.00054794,120]
[358134966,1744758133790,-500.0,0.00054794,120]
[358134967,1744758133817,-346.03397493,0.00054794,120]
[358134969,1744758133845,-1000.0,0.00054794,120]
[358134971,1744758133874,-342.93552097,0.00054794,120]
[358134972,1744758133902,-918.56,0.00054794,120]
[358134974,1744758133931,-918.56,0.00054794,120]
[358134976,1744758133961,-918.56,0.00054794,120]
[358134977,1744758133990,-918.56,0.00054794,120]
[358134979,1744758134018,-918.56,0.00054794,120]
[358134981,1744758134047,-918.56,0.00054794,120]
[358134982,1744758134076,-918.56,0.00054794,120]
[358134984,1744758134104,-918.56,0.00054794,120]
[358134986,1744758134136,-918.56,0.00054794,120]
[358134987,1744758134165,-918.56,0.00054794,120]
[358134989,1744758134194,-918.56,0.00054794,120]
[358134991,1744758134221,-918.56,0.00054794,120]
[358134992,1744758134249,-918.56,0.00054794,120]
[358134994,1744758134279,-918.56,0.00054794,120]
[358134996,1744758134307,-918.56,0.00054794,120]
[358134997,1744758134336,-918.56,0.00054794,120]
[358134999,1744758134368,-918.56,0.00054794,120]
[358135001,1744758134597,-918.56,0.00054794,120]
[358135003,1744758134627,-918.56,0.00054794,120]
[358135005,1744758134657,-918.56,0.00054794,120]
[358135006,1744758134687,-918.56,0.00054794,120]
[358135008,1744758134716,-918.56,0.00054794,120]
[358135010,1744758134743,-918.56,0.00054794,120]
[358135011,1744758134772,-918.7401816,0.00054794,120]
[358135013,1744758134799,-542.61171456,0.00054794,120]
[358135015,1744758134826,-1003.03,0.00054794,120]
[358135016,1744758134853,-1003.03,0.00054794,120]
[358135018,1744758134879,-1003.03,0.00054794,120]
[358135020,1744758134921,-1003.03,0.00054794,120]
[358135022,1744758134954,-1003.03,0.00054794,120]
[358135023,1744758134985,-1003.03,0.00054794,120]
[358135025,1744758135016,-1003.03,0.00054794,120]
[358135027,1744758135046,-1003.03,0.00054794,120]
[358135029,1744758135076,-1003.03,0.00054794,120]
[358135030,1744758135107,-1003.03,0.00054794,120]
[358135032,1744758135137,-1003.03,0.00054794,120]
[358135034,1744758135166,-1003.03,0.00054794,120]
[358135035,1744758135196,-1003.03,0.00054794,120]
[358135037,1744758135225,-1003.03,0.00054794,120]
[358135039,1744758135255,-1003.03,0.00054794,120]
[358135040,1744758135285,-1003.03,0.00054794,120]
[358135042,1744758135314,-1003.03,0.00054794,120]
[358135044,1744758135345,-1003.03,0.00054794,120]
[358135045,1744758135376,-1003.03,0.00054794,120]
[358135047,1744758135405,-1003.03,0.00054794,120]
[358135049,1744758135435,-1003.03,0.00054794,120]
[358135050,1744758135465,-1003.03,0.00054794,120]
[358135052,1744758135494,-1003.03,0.00054794,120]
[358135053,1744758135522,-1003.19883537,0.00054794,120]
[358135059,1744758135747,153.0,0.00047412,60]
[358135061,1744758135781,150.0,0.00053116,30]
[358135063,1744758135816,151.0,0.00053131,120]
[358135065,1744758135851,153.0,0.00047412,60]
[358135067,1744758135886,153.0,0.00047412,60]
[358135068,1744758135919,150.0,0.0005313,30]
[358135070,1744758135953,153.0,0.00047412,60]
[358135072,1744758135994,151.0,0.00053131,120]
[358135074,1744758136027,153.0,0.00047412,60]
[358135075,1744758136061,150.0,0.00053131,120]
[358135077,1744758136096,153.0,0.00047412,60]
[358135079,1744758136130,153.0,0.00047412,60]
[358135081,1744758136166,258.45207472,0.00052,120]
[358135082,1744758136199,150.0,0.00053137,30]
[358135084,1744758136232,153.0,0.00047412,60]
[358135086,1744758136265,151.0,0.00053131,120]
[358135088,1744758136299,153.0,0.00047412,60]
[358135090,1744758136332,150.0,0.0005315,120]
[358135091,1744758136368,153.0,0.00047412,60]
[358135093,1744758136418,153.0,0.00047412,60]
[358135095,1744758136455,152.79870499,0.00053131,120]
[358135097,1744758136487,150.0,0.00053158,30]
[358135099,1744758136526,153.0,0.00047412,60]
[358135101,1744758136570,150.0,0.00053185,30]
[358135103,1744758136604,150.0,0.00053192,30]
[358135105,1744758136644,150.0,0.000532,30]
[358135106,1744758136679,150.0,0.00053216,30]
[358135108,1744758136722,150.0,0.0005324,30]
[358135116,1744758137000,500.0,0.00053131,120]
[358135118,1744758137041,154.814,0.00054794,30]
[358135120,1744758137094,518.5,0.00053131,120]
[358135122,1744758137130,537.6845,0.00053131,120]
[358135124,1744758137181,557.5788265,0.00053131,120]
[358135127,1744758137259,984.32964447,0.00053131,120]
[358135149,1744758138202,156.0,0.00047,90]
[358135174,1744758139426,252.54116909,0.00053557,120]
[358135248,1744758142590,200.0,0.00053131,120]
[358135261,1744758143203,207.4,0.00053131,120]
[358135277,1744758143829,215.0738,0.00053131,120]
[358135292,1744758144452,223.0315306,0.00053131,120]
[358135308,1744758145108,231.28369723,0.00053131,120]
[358135323,1744758145729,239.84119403,0.00053131,120]
[358135339,1744758146398,248.71531821,0.00053131,120]
[358135352,1744758146944,1068.0,0.00052055,30]
[358135355,1744758147040,257.91778498,0.00053131,120]
[358135363,1744758147522,2142.0,0.00052865,50]
[358135369,1744758147715,267.46074303,0.00053131,120]
[358135386,1744758148429,277.35679052,0.00053131,120]
[358135401,1744758149050,287.61899177,0.00053131,120]
[358135418,1744758149736,298.26089446,0.00053131,120]
[358135435,1744758150403,309.29654756,0.00053131,120]
[358135444,1744758150723,252.51391391,0.00053794,120]
[358135463,1744758151539,320.74051982,0.00053131,120]
[358135478,1744758152206,332.60791905,0.00053131,120]
[358135491,1744758152663,1068.0,0.00049452,30]
[358135496,1744758152834,344.91441206,0.00053131,120]
[358135783,1744758269731,1210.86559921,0.00016896,2]
[358135784,1744758269803,2842.62868582,0.00016896,2]
[358135785,1744758269832,16836.28571497,0.00016896,2]
[358137580,1744758456337,234.61,0.0001715,2]
[358137581,1744758504644,2121.11,0.0001715,2]
[358137590,1744758614673,500.0,0.00017287,3]
[358137592,1744758632169,-165.74,0.00017711,2]
[358137593,1744758632179,-150.0,0.00017731,2]
[358137594,1744758632189,-234.83,0.00017883,2]
[358137595,1744758632199,-500.0,0.00017883,2]
[358137596,1744758632208,-300.0,0.00017883,2]
[358137597,1744758632217,-550.0,0.00017883,2]
[358137598,1744758632227,-300.0,0.00017883,2]
[358137599,1744758632236,-500.0,0.00017884,2]
[358137600,1744758632246,-500.0,0.00017884,2]
[358137601,1744758632255,-500.0,0.00017884,2]
[358137602,1744758632265,-576.34257457,0.00017884,2]
[358137603,1744758632275,-500.0,0.00017884,2]
[358137604,1744758632284,-500.0,0.00017884,2]
[358137605,1744758632293,-500.0,0.00017884,2]